bitfinex/quotes_SOLUSD_20241229
["timestamp","ask_amount","ask_price","bid_price","bid_amount"]
[1735483172311,0.96823523,193.72,193.66,16.03068818]
[1735483172507,39.80757218,193.71,193.64,16.03068818]
[1735483172708,46.09707218,193.69,193.62,16.03068818]
[1735483173021,0.96844473,193.68,193.62,16.03068818]
[1735483173612,0.96844473,193.68,193.63,16.03068818]
[1735483173929,3.8725,193.67,193.64,16.03068818]
[1735483174124,0.96836592,193.66,193.64,16.03068818]
[1735483174638,0.96828137,193.65,193.64,16.03068818]
[1735483175422,0.96828137,193.65,193.63,16.03068818]
[1735483175931,0.96828137,193.65,193.62,16.03068818]
[1735483176225,0.96828137,193.65,193.61,16.03068818]
[1735483176395,4.84138137,193.65,193.61,16.03068818]
[1735483176595,4.84138137,193.65,193.62,16.03068818]
[1735483177231,3.8731,193.65,193.63,16.03068818]
[1735483177707,0.96837674,193.64,193.62,16.03068818]
[1735483178023,0.96837674,193.64,193.61,16.03068818]
[1735483178245,3.8733,193.63,193.59,16.03068818]
[1735483178408,0.96859611,193.62,193.59,16.03068818]
[1735483179942,0.96859611,193.62,193.58,16.03068818]
[1735483180228,4.84239353,193.61,193.58,16.03068818]
[1735483180416,4.84239353,193.61,193.56,16.03068818]
[1735483180730,4.84239353,193.61,193.55,16.03068818]
[1735483180901,23.776884,193.58,193.52,16.03068818]
[1735483181103,0.96893656,193.57,193.52,16.03068818]
[1735483181536,0.96893656,193.57,193.53,16.03068818]
[1735483182106,4.84361831,193.56,193.54,16.03068818]
[1735483183133,3.8747,193.56,193.55,16.03068818]
[1735483183329,3.8747,193.56,193.54,16.03068818]
[1735483184000,3.8747,193.56,193.55,16.03068818]
[1735483184205,7.7427,193.73,193.55,16.03068818]
[1735483184206,4.84289247,193.6,193.55,16.03068818]
[1735483184424,4.84289247,193.6,193.58,16.03068818]
[1735483184831,4.84289247,193.6,193.56,16.03068818]
[1735483185033,4.84289247,193.6,193.45,1.6277]
[1735483185346,4.84289247,193.6,193.56,16.03068818]
[1735483185633,4.84289247,193.6,193.55,16.03068818]
[1735483185947,4.84289247,193.6,193.57,16.03068818]
[1735483186116,4.84289247,193.6,193.56,16.03068818]
[1735483186444,4.84289247,193.6,193.55,16.03068818]
[1735483187333,4.84289247,193.6,193.54,16.03068818]
[1735483189938,4.84289247,193.6,193.46,20.0]
[1735483189939,4.84289247,193.6,193.53,16.03068818]
[1735483190141,4.84289247,193.6,193.55,16.03068818]
[1735483190350,4.84289247,193.6,193.56,16.03068818]
[1735483190650,4.84289247,193.6,193.46,20.69685465]
[1735483190833,4.84289247,193.6,193.53,16.03068818]
[1735483191220,20.87358065,193.6,193.53,16.03068818]
[1735483192141,3.8743,193.58,193.52,16.03068818]
[1735483192342,0.96890508,193.57,193.52,16.03068818]
[1735483192644,0.96890508,193.57,193.53,16.03068818]
[1735483193147,0.96890508,193.57,193.54,16.03068818]
[1735483194155,0.96874655,193.6,193.55,16.03068818]
[1735483194322,0.96874655,193.6,193.56,16.03068818]
[1735483194658,4.84230253,193.61,193.57,16.03068818]
[1735483195529,4.84230253,193.61,193.56,16.03068818]
[1735483195918,4.84230253,193.61,193.55,16.03068818]
[1735483196124,16.03068818,193.6,193.53,16.03068818]
[1735483196325,0.96880074,193.59,193.53,16.03068818]
[1735483196826,0.96880074,193.59,193.54,16.03068818]
[1735483197124,0.96872057,193.6,193.54,16.03068818]
[1735483197324,3.8741,193.59,193.54,16.03068818]
[1735483197539,0.96872093,193.58,193.54,16.03068818]
[1735483199937,3.8741,193.59,193.54,16.03068818]
[1735483201139,0.9687188,193.61,193.54,16.03068818]
[1735483202550,0.96858621,193.66,193.58,16.03068818]
[1735483202730,3.873,193.65,193.59,16.03068818]
[1735483202929,0.96840266,193.64,193.59,16.03068818]
[1735483203552,4.84141126,193.65,193.59,16.03068818]
[1735483203850,0.9683743,193.64,193.6,16.03068818]
[1735483204046,0.9683999,193.65,193.6,16.03068818]
[1735483204258,0.9683999,193.65,193.54,2.35896622]
[1735483204259,16.99908808,193.65,193.58,16.03068818]
[1735483204442,16.03068818,193.63,193.56,16.03068818]
[1735483204642,3.8737,193.61,193.56,16.03068818]
[1735483204835,0.96859744,193.6,193.55,16.03068818]
[1735483205560,16.99928562,193.6,193.53,16.03068818]
[1735483206738,16.03068818,193.58,193.52,16.03068818]
[1735483206944,16.99951009,193.57,193.5,16.03068818]
[1735483208156,0.96882191,193.57,193.51,16.03068818]
[1735483208453,0.96882191,193.57,193.52,16.03068818]
[1735483208662,0.96882191,193.57,193.51,16.03068818]
[1735483209042,4.84352191,193.57,193.51,16.03068818]
[1735483209436,4.84352191,193.57,193.45,1.5702]
[1735483209437,4.84352191,193.57,193.52,16.03068818]
[1735483209940,16.03068818,193.55,193.45,1.5702]
[1735483210143,0.96893417,193.54,193.48,16.03068818]
[1735483212348,16.99962235,193.54,193.47,16.03068818]
[1735483212551,19.90598818,193.53,193.45,16.03068818]
[1735483212736,0.96911044,193.52,193.45,16.03068818]
[1735483213461,0.96911044,193.52,193.46,16.03068818]
[1735483213867,0.96911044,193.52,193.42,20.0]
[1735483214036,3.8757,193.51,193.46,16.03068818]
[1735483214243,0.96918926,193.5,193.45,16.03068818]
[1735483215054,0.96918926,193.5,193.44,16.03068818]
[1735483215256,16.99987744,193.5,193.43,16.03068818]
[1735483215463,16.03068818,193.48,193.37,1.5702]
[1735483215665,16.03068818,193.48,193.41,16.03068818]
[1735483215666,0.96941755,193.47,193.41,16.03068818]
[1735483215963,0.96941755,193.47,193.4,16.03068818]
[1735483216265,3.8767,193.46,193.41,16.03068818]
[1735483216456,0.96943823,193.45,193.41,16.03068818]
[1735483217364,3.8771,193.44,193.34,6.383]
[1735483217657,0.9695553,193.43,193.31,20.0]
[1735483217849,0.9695553,193.43,193.36,16.03068818]
[1735483217850,17.00024348,193.43,193.36,16.03068818]
[1735483218268,17.00024348,193.43,193.28,30.0]
[1735483218560,17.00024348,193.43,193.36,16.03068818]
[1735483219352,3.8775,193.42,193.28,30.0]
[1735483219662,0.96962001,193.41,193.36,16.03068818]
[1735483219856,0.96962001,193.41,193.37,16.03068818]
[1735483220760,20.96960081,193.43,193.4,16.03068818]
[1735483221262,20.96960081,193.43,193.41,16.03068818]
[1735483221263,0.96960081,193.43,193.41,16.03068818]
[1735483221452,4.84610816,193.47,193.42,16.03068818]
[1735483221651,4.84610816,193.47,193.45,16.03068818]
[1735483221860,3.8767,193.47,193.45,16.03068818]
[1735483222168,6.4925463,193.5,193.46,16.03068818]
[1735483222365,4.8451463,193.5,193.48,16.03068818]
[1735483222680,4.84498744,193.5,193.46,16.03068818]
[1735483222966,20.0,193.46,193.36,1.5703]
[1735483223138,0.96939195,193.47,193.43,16.03068818]
[1735483223338,0.96928599,193.49,193.43,16.03068818]
[1735483223834,24.74616999,193.49,193.44,16.03068818]
[1735483224041,3.8763,193.48,193.44,16.03068818]
[1735483224239,0.96930406,193.47,193.44,16.03068818]
[1735483225176,0.96930406,193.47,193.43,16.03068818]
[1735483225578,23.8767,193.46,193.41,16.03068818]
[1735483225781,0.96947441,193.45,193.4,16.03068818]
[1735483225958,0.96947441,193.45,193.36,1.5703]
[1735483226163,0.96947441,193.45,193.41,16.03068818]
[1735483226484,0.96947441,193.45,193.36,1.5703]
[1735483226677,0.96947441,193.45,193.4,16.03068818]
[1735483226857,0.96947441,193.45,193.36,1.5703]
[1735483227060,0.96947441,193.45,193.41,16.03068818]
[1735483227452,0.96947441,193.45,193.43,16.03068818]
[1735483227652,0.96947441,193.45,193.36,1.5703]
[1735483227862,0.96947441,193.45,193.41,16.03068818]
[1735483228069,17.00016241,193.45,193.41,16.03068818]
[1735483228273,17.00016241,193.45,193.36,1.5703]
[1735483228476,17.00016241,193.45,193.41,16.03068818]
[1735483229186,17.00016241,193.45,193.4,16.03068818]
[1735483229362,17.00016241,193.45,193.41,16.03068818]
[1735483230394,3.8771,193.44,193.4,16.03068818]
[1735483230696,0.96952038,193.43,193.38,16.03068818]
[1735483230872,0.96952038,193.43,193.39,16.03068818]
[1735483232074,3.8771,193.44,193.4,16.03068818]
[1735483232075,4.84657572,193.44,193.4,16.03068818]
[1735483234294,4.84657572,193.44,193.39,16.03068818]
[1735483234793,4.84657572,193.44,193.38,16.03068818]
[1735483235504,4.84657572,193.44,193.39,16.03068818]
[1735483235800,3.8753,193.54,193.43,16.03068818]
[1735483235973,0.96897229,193.53,193.49,16.03068818]
[1735483236289,20.96897229,193.53,193.49,16.03068818]
[1735483236678,20.96897229,193.53,193.48,16.03068818]
[1735483237298,3.8755,193.52,193.47,16.03068818]
[1735483237484,3.8755,193.52,193.48,16.03068818]
[1735483239209,4.8433371,193.59,193.51,16.03068818]
[1735483239418,4.8433371,193.59,193.53,16.03068818]
[1735483239565,32.06137718,193.58,193.51,16.03068818]
[1735483239766,40.77653283,193.57,193.5,16.03068818]
[1735483239971,16.99964883,193.57,193.5,16.03068818]
[1735483240204,3.8747,193.56,193.52,16.03068818]
[1735483240386,0.9689137,193.55,193.52,16.03068818]
[1735483240882,0.96886089,193.56,193.54,16.03068818]
[1735483241095,0.96886089,193.56,193.44,0.6970671]
[1735483241096,0.96881369,193.58,193.55,16.03068818]
[1735483242207,22.589389,193.61,193.55,16.03068818]
[1735483242208,0.9687355,193.59,193.55,16.03068818]
[1735483242388,3.8743,193.58,193.54,16.03068818]
[1735483242570,0.96876329,193.57,193.54,16.03068818]
[1735483243190,3.8743,193.58,193.55,16.03068818]
[1735483243409,0.96874858,193.6,193.55,16.03068818]
[1735483243600,0.96874858,193.6,193.56,16.03068818]
[1735483243926,0.96874858,193.6,193.58,16.03068818]
[1735483244285,3.8737,193.61,193.58,16.03068818]
[1735483244286,4.84230595,193.61,193.58,16.03068818]
[1735483244518,3.8737,193.61,193.58,16.03068818]
[1735483245617,0.96857697,193.6,193.58,16.03068818]
[1735483245912,3.8737,193.61,193.58,16.03068818]
[1735483246417,0.9685928,193.63,193.59,16.03068818]
[1735483246590,0.9685928,193.63,193.6,16.03068818]
[1735483246790,0.96845071,193.64,193.61,16.03068818]
[1735483247886,4.84149413,193.65,193.61,16.03068818]
[1735483248184,4.84149413,193.65,193.62,16.03068818]
[1735483248375,16.99906296,193.67,193.64,16.03068818]
[1735483248577,4.84054704,193.68,193.65,16.03068818]
[1735483249617,3.8723,193.68,193.65,16.03068818]
[1735483249818,0.96823613,193.67,193.61,16.03068818]
[1735483249995,0.96823613,193.67,193.62,16.03068818]
[1735483250898,0.96823613,193.67,193.63,16.03068818]
[1735483251094,20.96823613,193.67,193.53,0.69605713]
[1735483251293,16.03068818,193.66,193.52,6.4844]
[1735483251499,0.96844919,193.65,193.6,16.03068818]
[1735483251697,0.9684186,193.66,193.6,16.03068818]
[1735483251906,4.8413186,193.66,193.61,16.03068818]
[1735483252211,4.8413186,193.66,193.6,16.03068818]
[1735483252415,4.8413186,193.66,193.59,16.03068818]
[1735483252416,20.87200678,193.66,193.59,16.03068818]
[1735483253509,20.87200678,193.66,193.58,16.03068818]
[1735483253510,3.8731,193.64,193.58,16.03068818]
[1735483253720,0.96857973,193.63,193.57,16.03068818]
[1735483253890,0.96857973,193.63,193.58,16.03068818]
[1735483254389,0.96857973,193.63,193.57,16.03068818]
[1735483254815,0.96857973,193.63,193.56,16.03068818]
[1735483254999,16.99926791,193.63,193.56,16.03068818]
[1735483255320,0.96857973,193.63,193.57,16.03068818]
[1735483257518,0.96857973,193.63,193.58,16.03068818]
[1735483257705,3.8731,193.64,193.6,16.03068818]
[1735483257911,3.8725,193.67,193.61,16.03068818]
[1735483258432,0.9683281,193.69,193.64,16.03068818]
[1735483258797,3.8723,193.68,193.62,16.03068818]
[1735483259024,0.96836201,193.67,193.62,16.03068818]
[1735483259333,0.96836201,193.67,193.61,16.03068818]
[1735483259697,0.96836201,193.67,193.62,16.03068818]
[1735483260121,0.96836201,193.67,193.61,16.03068818]
[1735483261121,16.03068818,193.66,193.58,16.03068818]
[1735483261339,16.03068818,193.64,193.57,16.03068818]
[1735483261500,0.96853411,193.63,193.56,16.03068818]
[1735483262019,0.96853411,193.63,193.57,16.03068818]
[1735483263821,0.96853411,193.63,193.56,16.03068818]
[1735483264118,0.96853411,193.63,193.57,16.03068818]
[1735483264696,3.8735,193.62,193.55,16.03068818]
[1735483264897,0.96858134,193.61,193.55,16.03068818]
[1735483265496,16.03068818,193.6,193.53,16.03068818]
[1735483265703,0.9687394,193.59,193.53,16.03068818]
[1735483266019,36.99933989,193.61,193.54,16.03068818]
[1735483266212,0.96864464,193.6,193.54,16.03068818]
[1735483267325,3.8735,193.62,193.58,16.03068818]
[1735483267528,16.03068818,193.65,193.58,16.03068818]
[1735483267732,0.96839653,193.64,193.58,16.03068818]
[1735483268836,20.87238471,193.64,193.57,16.03068818]
[1735483270131,4.84169653,193.64,193.58,16.03068818]
[1735483271571,19.90418818,193.62,193.55,16.03068818]
[1735483271717,16.03068818,193.6,193.52,16.03068818]
[1735483271921,0.968674,193.61,193.52,16.03068818]
[1735483271922,16.99942945,193.59,193.52,16.03068818]
[1735483272603,0.96874127,193.59,193.53,16.03068818]
[1735483272821,0.96874747,193.6,193.49,0.69673863]
[1735483273028,0.96874747,193.6,193.53,16.03068818]
[1735483274367,3.8741,193.59,193.53,16.03068818]
[1735483274572,0.96873894,193.58,193.51,16.03068818]
[1735483274857,0.96873894,193.58,193.52,16.03068818]
[1735483275156,3.8741,193.59,193.53,16.03068818]
[1735483275455,0.96862744,193.58,193.52,16.03068818]
[1735483276259,3.8745,193.57,193.51,16.03068818]
[1735483276941,0.96877098,193.56,193.51,16.03068818]
[1735483277137,4.84327098,193.57,193.51,16.03068818]
[1735483277364,4.84327098,193.57,193.52,16.03068818]
[1735483277532,3.8745,193.57,193.52,16.03068818]
[1735483277732,0.9687832,193.56,193.51,16.03068818]
[1735483278262,3.8749,193.55,193.48,16.03068818]
[1735483278438,0.96894221,193.54,193.48,16.03068818]
[1735483278755,0.96894221,193.54,193.47,16.03068818]
[1735483278953,0.96894221,193.54,193.48,16.03068818]
[1735483279153,3.8753,193.53,193.47,16.03068818]
[1735483279328,0.968995,193.52,193.47,16.03068818]
[1735483279526,0.968995,193.52,193.48,16.03068818]
[1735483279729,3.8753,193.53,193.48,16.03068818]
[1735483279958,0.96895314,193.52,193.48,16.03068818]
[1735483280459,0.96895314,193.52,193.46,16.03068818]
[1735483280648,16.03068818,193.5,193.41,1.6025]
[1735483280853,16.99997205,193.49,193.42,16.03068818]
[1735483281053,0.96928387,193.49,193.44,16.03068818]
[1735483281361,3.875,193.55,193.48,16.03068818]
[1735483281947,3.875,193.55,193.5,16.03068818]
[1735483282560,0.9688596,193.54,193.5,16.03068818]
[1735483283145,3.875,193.55,193.5,16.03068818]
[1735483283659,3.875,193.55,193.49,16.03068818]
[1735483283660,0.96886305,193.54,193.49,16.03068818]
[1735483284164,4.84392565,193.55,193.5,16.03068818]
[1735483285059,3.875,193.55,193.5,16.03068818]
[1735483286144,3.8743,193.58,193.53,16.03068818]
[1735483287766,7.823,193.6,193.54,16.03068818]
[1735483288066,7.823,193.6,193.55,16.03068818]
[1735483288560,6.2773,193.6,193.55,16.03068818]
[1735483288757,20.0,193.6,193.55,16.03068818]
[1735483289263,0.96859409,193.61,193.55,16.03068818]
[1735483289766,20.0,193.61,193.56,16.03068818]
[1735483289942,3.8737,193.62,193.57,16.03068818]
[1735483290775,3.873,193.65,193.6,16.03068818]
[1735483290975,20.0,193.64,193.6,16.03068818]
[1735483291149,3.873,193.65,193.61,16.03068818]
[1735483291472,4.84074557,193.68,193.63,16.03068818]
[1735483291637,4.84074557,193.68,193.62,16.03068818]
[1735483292051,20.87143375,193.68,193.61,16.03068818]
[1735483292248,16.03068818,193.67,193.6,16.03068818]
[1735483292450,4.841068,193.66,193.6,16.03068818]
[1735483293076,20.87175618,193.66,193.59,16.03068818]
[1735483293375,4.841068,193.66,193.6,16.03068818]
[1735483293567,16.03068818,193.65,193.58,16.03068818]
[1735483293774,0.96851062,193.64,193.57,16.03068818]
[1735483293976,16.9991988,193.64,193.57,16.03068818]
[1735483294163,16.03068818,193.63,193.56,16.03068818]
[1735483294471,16.03068818,193.6,193.53,16.03068818]
[1735483294657,16.03068818,193.58,193.49,1.6489]
[1735483294970,0.96883263,193.57,193.5,16.03068818]
[1735483295170,0.96883263,193.57,193.45,1.6489]
[1735483295171,0.96883263,193.57,193.51,16.03068818]
[1735483295662,4.84353263,193.57,193.51,16.03068818]
[1735483295975,0.96881692,193.6,193.55,16.03068818]
[1735483296151,20.0,193.59,193.54,16.03068818]
[1735483296551,20.0,193.59,193.53,16.03068818]
[1735483297666,0.96867436,193.58,193.53,16.03068818]
[1735483298043,4.84299167,193.59,193.53,16.03068818]
[1735483298690,3.8743,193.59,193.54,16.03068818]
[1735483299380,3.8743,193.59,193.53,16.03068818]
[1735483299775,3.8743,193.59,193.54,16.03068818]
[1735483300085,3.8736,193.62,193.57,16.03068818]
[1735483300380,3.873,193.65,193.51,0.69612046]
[1735483300586,16.03068818,193.56,193.48,16.03068818]
[1735483300756,20.0,193.62,193.54,16.03068818]
[1735483301087,4.84180307,193.65,193.58,16.03068818]
[1735483301390,20.87249125,193.65,193.57,16.03068818]
[1735483301675,16.03068818,193.64,193.57,16.03068818]
[1735483301980,16.03068818,193.62,193.52,6.3805]
[1735483302284,16.03068818,193.62,193.55,16.03068818]
[1735483302653,16.99909067,193.63,193.56,16.03068818]
[1735483303578,20.87259067,193.63,193.56,16.03068818]
[1735483305051,16.03068818,193.62,193.55,16.03068818]
[1735483305982,40.87259067,193.63,193.56,16.03068818]
[1735483307679,16.03068818,193.62,193.52,7.07677759]
[1735483307849,16.03068818,193.62,193.55,16.03068818]
[1735483308184,24.84190249,193.63,193.56,16.03068818]
[1735483308359,23.8735,193.63,193.56,16.03068818]
[1735483308564,23.8735,193.63,193.57,16.03068818]
[1735483309100,7.76041482,193.67,193.62,16.03068818]
[1735483309277,7.76041482,193.67,193.63,16.03068818]
[1735483309278,3.88771482,193.67,193.63,16.03068818]
[1735483309588,18.56182903,193.7,193.63,16.03068818]
[1735483309992,18.56182903,193.7,193.62,16.03068818]
[1735483310286,5.435,193.7,193.64,16.03068818]
[1735483310790,5.435,193.7,193.63,16.03068818]
[1735483310959,16.03068818,193.68,193.61,16.03068818]
[1735483311286,16.99895677,193.67,193.6,16.03068818]
[1735483312254,20.87155677,193.67,193.6,16.03068818]
[1735483312685,20.87155677,193.67,193.59,16.03068818]
[1735483313699,16.03068818,193.65,193.58,16.03068818]
[1735483313978,16.03068818,193.61,193.54,16.03068818]
[1735483314278,19.90458818,193.6,193.53,16.03068818]
[1735483314483,19.90458818,193.6,193.49,2.23950172]
[1735483314484,19.90458818,193.6,193.52,16.03068818]
[1735483314692,16.03068818,193.59,193.52,16.03068818]
[1735483315188,16.03068818,193.57,193.5,16.03068818]
[1735483315573,16.03068818,193.55,193.48,16.03068818]
[1735483316691,19.90538818,193.57,193.5,16.03068818]
[1735483316855,3.8747,193.57,193.51,16.03068818]
[1735483317490,19.90538818,193.57,193.5,16.03068818]
[1735483318293,3.8747,193.57,193.51,16.03068818]
[1735483318990,3.8747,193.57,193.47,0.69655798]
[1735483319192,19.90538818,193.57,193.5,16.03068818]
[1735483319992,19.90538818,193.57,193.47,0.69655798]
[1735483319993,16.03068818,193.56,193.47,0.69655798]
[1735483320195,16.03068818,193.56,193.48,16.03068818]
[1735483320196,16.03068818,193.55,193.48,16.03068818]
[1735483320387,3.8747,193.57,193.47,16.03068818]
[1735483320388,16.99958169,193.54,193.47,16.03068818]
[1735483321074,16.03068818,193.53,193.46,16.03068818]
[1735483321485,16.03068818,193.51,193.44,16.03068818]
[1735483322505,3.8761,193.49,193.43,16.03068818]
[1735483323806,3.8761,193.49,193.44,16.03068818]
[1735483323967,3.8755,193.52,193.45,16.03068818]
[1735483324170,3.8755,193.52,193.46,16.03068818]
[1735483324574,3.8755,193.52,193.48,16.03068818]
[1735483325287,11.16576761,193.59,193.49,0.69689739]
[1735483325513,3.8749,193.56,193.52,16.03068818]
[1735483325800,16.03068818,193.54,193.47,16.03068818]
[1735483325983,3.8753,193.53,193.47,16.03068818]
[1735483326183,3.8753,193.53,193.41,0.69678912]
[1735483326184,16.03068818,193.52,193.45,16.03068818]
[1735483326500,16.03068818,193.5,193.43,16.03068818]
[1735483326701,16.99988999,193.49,193.42,16.03068818]
[1735483327106,16.03068818,193.5,193.43,16.03068818]
[1735483327317,16.03068818,193.51,193.44,16.03068818]
[1735483327487,3.8761,193.49,193.44,16.03068818]
[1735483328103,3.8761,193.49,193.39,2.2407874]
[1735483328104,3.8761,193.49,193.45,16.03068818]
[1735483328425,3.8761,193.49,193.44,16.03068818]
[1735483328722,0.9691605,193.48,193.44,16.03068818]
[1735483329025,3.8761,193.49,193.44,16.03068818]
[1735483329618,3.8761,193.49,193.43,16.03068818]
[1735483329788,3.8761,193.49,193.44,16.03068818]
[1735483330289,3.8761,193.49,193.43,16.03068818]
[1735483331118,3.8761,193.49,193.44,16.03068818]
[1735483331431,16.03068818,193.53,193.46,16.03068818]
[1735483332085,16.03068818,193.54,193.47,16.03068818]
[1735483332283,3.8749,193.55,193.49,16.03068818]
[1735483334127,19.90558818,193.55,193.47,16.03068818]
[1735483334430,16.03068818,193.54,193.47,16.03068818]
[1735483335221,19.90558818,193.55,193.47,16.03068818]
[1735483336644,3.8749,193.55,193.49,16.03068818]
[1735483339589,3.8749,193.55,193.48,16.03068818]
[1735483339793,3.8749,193.55,193.49,16.03068818]
[1735483341449,3.8749,193.55,193.52,16.03068818]
[1735483341643,11.7308,193.59,193.54,16.03068818]
[1735483342339,3.8743,193.59,193.54,16.03068818]
[1735483342942,3.8736,193.62,193.56,16.03068818]
[1735483343126,3.8736,193.62,193.57,16.03068818]
[1735483343329,7.7924,193.64,193.58,16.03068818]
[1735483343523,16.03068818,193.65,193.58,16.03068818]
[1735483343932,16.03068818,193.65,193.51,30.69620032]
[1735483343933,19.90358818,193.66,193.59,16.03068818]
[1735483344741,3.8729,193.66,193.6,16.03068818]
[1735483344927,6.2858,193.69,193.61,16.03068818]
[1735483344928,16.03068818,193.68,193.61,16.03068818]
[1735483345326,10.1579,193.69,193.62,16.03068818]
[1735483345531,19.91899922,193.7,193.63,16.03068818]
[1735483345732,18.5052759,193.71,193.63,16.03068818]
[1735483345925,16.03068818,193.7,193.63,16.03068818]
[1735483346120,16.03068818,193.69,193.62,16.03068818]
[1735483347124,3.872,193.7,193.65,16.03068818]
[1735483347456,3.872,193.7,193.64,16.03068818]
[1735483347624,16.03068818,193.67,193.6,0.69520225]
[1735483347827,16.03068818,193.66,193.6,16.72589043]
[1735483348131,16.03068818,193.65,193.59,16.03068818]
[1735483348328,27.64658818,193.7,193.61,16.03068818]
[1735483348329,3.872,193.7,193.61,16.03068818]
[1735483348524,16.03068818,193.71,193.64,16.03068818]
[1735483348737,11.70901495,193.73,193.66,16.03068818]
[1735483348738,27.73970313,193.73,193.66,16.03068818]
[1735483348960,7.83771495,193.73,193.69,16.03068818]
[1735483349124,3.88831104,193.75,193.69,16.03068818]
[1735483349534,19.91899922,193.75,193.68,16.03068818]
[1735483349826,3.88831104,193.75,193.69,16.72535577]
[1735483350030,23.86840313,193.77,193.71,16.03068818]
[1735483350236,22.31648818,193.79,193.72,16.03068818]
[1735483350748,16.03068818,193.79,193.73,16.03068818]
[1735483351424,16.03068818,193.79,193.72,16.03068818]
[1735483351746,16.03068818,193.81,193.74,16.03068818]
[1735483351956,6.2858,193.84,193.75,16.03068818]
[1735483351957,16.03068818,193.82,193.75,16.03068818]
[1735483352753,16.03068818,193.82,193.76,16.72464966]
[1735483353125,16.03068818,193.83,193.76,16.72464966]
[1735483353550,16.03068818,193.83,193.76,16.03068818]
[1735483354036,19.89998818,193.84,193.77,16.03068818]
[1735483354238,3.8693,193.84,193.78,16.03068818]
[1735483354639,3.8693,193.84,193.79,16.03068818]
[1735483354839,17.53728818,193.86,193.79,16.03068818]
[1735483355047,1.5066,193.86,193.8,16.03068818]
[1735483355344,16.03068818,193.87,193.8,16.03068818]
[1735483355542,16.03068818,193.87,193.81,16.03068818]
[1735483355851,3.8685,193.88,193.81,16.03068818]
[1735483355852,19.89918818,193.88,193.81,16.03068818]
[1735483356051,16.03068818,193.87,193.81,16.03068818]
[1735483356653,16.03068818,193.82,193.74,16.03068818]
[1735483356854,16.03068818,193.79,193.72,16.03068818]
[1735483357039,16.03068818,193.78,193.71,16.03068818]
[1735483357445,16.03068818,193.76,193.69,16.03068818]
[1735483357754,16.03068818,193.74,193.67,16.03068818]
[1735483357956,16.03068818,193.7,193.64,16.03068818]
[1735483358130,16.03068818,193.69,193.62,16.03068818]
[1735483358328,16.03068818,193.67,193.6,16.03068818]
[1735483358532,16.99890328,193.66,193.59,16.03068818]
[1735483358870,16.03068818,193.65,193.58,16.03068818]
[1735483359242,16.03068818,193.62,193.52,1.6156]
[1735483359443,16.03068818,193.63,193.56,16.03068818]
[1735483359631,16.03068818,193.64,193.56,16.03068818]
[1735483359833,16.03068818,193.63,193.56,16.03068818]
[1735483360250,25.69491205,193.63,193.56,25.69491205]
[1735483362433,25.69491205,193.63,193.55,25.69491205]
[1735483362654,25.69491205,193.61,193.54,25.69491205]
[1735483363761,25.69491205,193.57,193.5,25.69491205]
[1735483363960,25.69491205,193.56,193.49,25.69491205]
[1735483364175,25.69491205,193.58,193.51,25.69491205]
[1735483364471,29.56881205,193.6,193.53,25.69491205]
[1735483364640,25.69491205,193.58,193.5,25.69491205]
[1735483365149,25.69491205,193.57,193.5,25.69491205]
[1735483365565,25.69491205,193.58,193.5,25.69491205]
[1735483365961,25.69491205,193.57,193.5,25.69491205]
[1735483366462,0.96869797,193.56,193.5,25.69491205]
[1735483367154,26.66361002,193.56,193.49,25.69491205]
[1735483367769,25.69491205,193.56,193.49,25.69491205]
[1735483369445,25.69491205,193.57,193.5,25.69491205]
[1735483370856,25.69491205,193.56,193.49,25.69491205]
[1735483371369,4.84346746,193.57,193.46,0.69642483]
[1735483371370,30.53837951,193.57,193.5,25.69491205]
[1735483374187,3.8747,193.57,193.52,25.69491205]
[1735483374577,3.8747,193.57,193.51,25.69491205]
[1735483374871,29.56961205,193.57,193.5,25.69491205]
[1735483375057,3.8747,193.57,193.51,25.69491205]
[1735483375867,29.56961205,193.57,193.5,25.69491205]
[1735483376050,25.69491205,193.56,193.49,25.69491205]
[1735483377273,3.8747,193.57,193.51,25.69491205]
[1735483377580,3.8747,193.57,193.52,25.69491205]
[1735483378081,3.8747,193.57,193.51,25.69491205]
[1735483379283,3.8747,193.57,193.52,25.69491205]
[1735483380173,25.69491205,193.59,193.52,25.69491205]
[1735483380481,29.56881205,193.6,193.53,25.69491205]
[1735483381164,26.66345784,193.59,193.51,25.69491205]
[1735483381365,25.69491205,193.59,193.52,25.69491205]
[1735483382288,16.06544114,193.59,193.52,16.06544114]
[1735483382486,16.06544114,193.57,193.49,16.76186093]
[1735483383288,16.06544114,193.56,193.49,16.76186093]
[1735483383686,16.06544114,193.57,193.49,16.06544114]
[1735483383866,16.06544114,193.57,193.5,16.06544114]
[1735483384393,16.06544114,193.55,193.48,16.06544114]
[1735483384778,16.06544114,193.53,193.46,16.06544114]
[1735483385159,16.06544114,193.51,193.44,16.06544114]
[1735483385364,16.06544114,193.5,193.43,16.06544114]
[1735483385570,17.03442446,193.5,193.43,16.06544114]
[1735483385887,3.8759,193.51,193.45,16.06544114]